bitfinex/quotes_ETHUSD_20250525
["timestamp","ask_amount","ask_price","bid_price","bid_amount"]
[1748187455407,9.73221653,2494.6,2494.2,8.9264]
[1748187455706,9.73221653,2494.6,2494.2,0.9264]
[1748187456404,4.002,2494.5,2494.2,0.9264]
[1748187457261,8.48365139,2494.6,2494.2,0.9264]
[1748187457715,4.001,2494.5,2494.2,0.9264]
[1748187458096,4.001,2494.5,2494.2,8.9264]
[1748187460273,8.48365139,2494.6,2494.2,8.9264]
[1748187460507,8.48365139,2494.6,2494.3,0.911833]
[1748187460720,8.48365139,2494.6,2494.3,0.9015]
[1748187461522,8.48365139,2494.6,2494.3,0.55]
[1748187461727,8.48365139,2494.6,2494.4,0.9015]
[1748187463908,8.48365139,2494.6,2494.5,0.9015]
[1748187464809,8.48365139,2494.6,2494.5,6.7495]
[1748187464994,8.48365139,2494.6,2494.5,14.7495]
[1748187465715,8.48365139,2494.6,2494.5,0.9015]
[1748187465885,8.48365139,2494.6,2494.5,6.7485]
[1748187467389,12.48465139,2494.6,2494.5,6.7485]
[1748187469533,8.48365139,2494.6,2494.5,6.7485]
[1748187469732,8.48365139,2494.6,2494.5,14.7485]
[1748187473850,8.48365139,2494.6,2494.5,6.7485]
[1748187474178,9.73201653,2494.6,2494.1,8.02]
[1748187474427,4.0,2494.5,2494.3,8.0]
[1748187474921,4.0,2494.5,2494.2,5.847]
[1748187477136,9.73201653,2494.6,2494.2,5.847]
[1748187477443,8.48365139,2494.6,2494.4,0.9467]
[1748187478438,12.48465139,2494.6,2494.4,0.9467]
[1748187478632,12.48465139,2494.6,2494.5,5.847]
[1748187480437,8.48365139,2494.6,2494.5,13.847]
[1748187482221,8.48365139,2494.6,2494.4,0.9467]
[1748187482420,8.48365139,2494.6,2494.5,5.847]
[1748187482619,12.48465139,2494.6,2494.5,5.847]
[1748187484118,13.73311653,2494.6,2494.5,5.847]
[1748187484518,13.73311653,2494.6,2494.1,0.02]
[1748187484723,0.9485,2494.4,2494.1,5.868]
[1748187485034,4.001,2494.3,2494.1,5.868]
[1748187486932,4.001,2494.3,2494.1,0.02]
[1748187487117,4.57501087,2494.3,2494.1,0.02]
[1748187487379,0.57401087,2494.3,2494.1,0.02]
[1748187487553,4.001,2494.4,2494.1,0.9531]
[1748187488465,12.48465139,2494.6,2494.1,0.9531]
[1748187489440,12.48465139,2494.6,2494.3,8.0]
[1748187489664,8.48365139,2494.6,2494.4,0.9331]
[1748187491182,8.48365139,2494.6,2494.4,1.4360257]
[1748187491383,8.48365139,2494.6,2494.5,1.4117257]
[1748187491886,8.48365139,2494.6,2494.5,13.97593343]
[1748187492048,8.48365139,2494.6,2494.5,13.4598]
[1748187495181,8.48365139,2494.6,2494.5,22.1018]
[1748187495539,8.48365139,2494.6,2494.5,22.6047257]
[1748187495745,8.48365139,2494.6,2494.5,23.12085913]
[1748187496485,8.84629118,2496.2,2494.6,8.55]
[1748187496688,4.0,2496.1,2494.8,8.55]
[1748187496897,4.0,2496.1,2495.0,8.55]
[1748187497202,4.0,2496.1,2495.2,8.55]
[1748187497689,4.0,2496.1,2495.2,8.0]
[1748187498492,6.56125139,2496.2,2495.3,0.55]
[1748187498666,4.0,2496.1,2495.3,0.55]
[1748187499494,6.56125139,2496.2,2495.3,0.55]
[1748187499789,6.56125139,2496.2,2495.5,8.55]
[1748187501196,6.56125139,2496.2,2495.5,8.94423598]
[1748187501412,6.56125139,2496.2,2494.5,9.01043251]
[1748187501546,11.46265139,2496.2,2494.6,16.26763585]
[1748187501751,11.46265139,2496.2,2494.7,9.802]
[1748187501986,11.46265139,2496.2,2494.9,0.55]
[1748187502308,11.46265139,2496.2,2494.9,0.40035344]
[1748187502309,12.60891653,2496.2,2494.9,0.40035344]
[1748187502513,11.46265139,2496.2,2494.8,0.55]
[1748187503280,11.46265139,2496.2,2494.8,1.0529257]
[1748187503480,11.46265139,2496.2,2494.9,0.5029257]
[1748187504280,11.46265139,2496.2,2495.0,0.55]
[1748187504593,11.46265139,2496.2,2495.1,6.13]
[1748187505213,12.60891653,2496.2,2495.1,6.13]
[1748187505618,12.60891653,2496.2,2495.1,8.0]
[1748187506817,0.9222,2496.1,2495.1,8.0]
[1748187507793,6.56125139,2496.0,2494.8,8.0]
[1748187508001,0.9222,2495.9,2494.8,8.0]
[1748187508194,10.56025139,2495.8,2494.8,8.0]
[1748187508515,6.56125139,2495.8,2494.8,8.0]
[1748187509422,6.56125139,2495.8,2494.9,0.51321611]
[1748187509920,6.56125139,2495.8,2495.2,0.55]
[1748187510693,6.56125139,2495.8,2495.2,1.0529257]
[1748187513147,6.56125139,2495.8,2495.3,0.01027583]
[1748187513355,6.56125139,2495.8,2495.4,0.55]
[1748187513644,6.56125139,2495.8,2495.6,8.0]
[1748187513856,6.56125139,2495.8,2495.6,14.13]
[1748187514006,6.56125139,2495.8,2495.7,0.0278]
[1748187514207,6.56125139,2495.8,2495.7,0.5778]
[1748187514517,6.56125139,2495.8,2495.7,0.0278]
[1748187515014,6.56125139,2495.8,2495.7,0.5778]
[1748187515663,6.56125139,2495.8,2495.7,0.0278]
[1748187515991,6.56125139,2495.8,2495.6,14.13]
[1748187518349,6.56125139,2495.8,2495.6,8.0]
[1748187520077,6.56125139,2495.8,2495.7,0.55]
[1748187520353,6.56125139,2495.8,2495.7,0.5778]
[1748187521033,6.56125139,2495.8,2495.7,1.0807257]
[1748187521938,5.35078374,2495.8,2495.7,1.0807257]
[1748187522259,5.35078374,2495.8,2495.7,1.59685913]
[1748187522631,5.35078374,2495.8,2495.7,1.0807257]
[1748187523227,5.35078374,2495.8,2495.7,0.5307257]
[1748187523457,5.35078374,2495.8,2495.7,13.753]
[1748187523763,5.35078374,2495.8,2495.7,5.753]
[1748187524154,5.35078374,2495.8,2495.7,13.753]
[1748187524332,4.14078374,2495.8,2495.7,13.753]
[1748187524532,4.14078374,2495.8,2495.7,5.753]
[1748187526184,3.13868347,2495.8,2495.7,7.44760913]
[1748187526380,0.8967,2496.8,2495.8,1.66680913]
[1748187526833,0.8967,2496.8,2496.0,8.0]
[1748187527038,0.8967,2496.8,2496.1,8.636]
[1748187527451,0.8967,2496.8,2496.2,9.11680913]
[1748187527663,0.8967,2496.8,2496.3,0.0278]
[1748187527845,8.04,2496.7,2496.5,8.0]
[1748187528050,8.04,2496.7,2496.6,1.13962754]
[1748187528238,8.04,2496.7,2496.6,1.69460913]
[1748187528680,8.04,2496.7,2496.6,18.32939236]
[1748187529856,8.04,2496.7,2496.6,18.87939236]
[1748187533144,8.06,2496.9,2496.7,8.55]
[1748187534189,8.06,2496.9,2496.8,14.68]
[1748187534347,8.06,2496.9,2496.8,15.79680913]
[1748187534697,8.06,2496.9,2496.8,15.82460913]
[1748187535942,6.51898741,2496.9,2496.8,15.82460913]
[1748187536147,5.52038741,2496.9,2496.8,15.82460913]
[1748187536941,5.52038741,2496.9,2496.8,15.25939236]
[1748187537245,5.52038741,2496.9,2496.8,15.878]
[1748187537650,5.52038741,2496.9,2496.8,23.878]
[1748187538456,5.52038741,2496.9,2496.8,24.428]
[1748187539182,3.00038741,2496.9,2496.8,24.428]
[1748187540183,2.80851817,2496.9,2496.8,19.44260913]
[1748187540357,2.11851817,2496.9,2496.8,25.57260913]
[1748187540558,0.02,2497.9,2496.9,8.55]
[1748187540779,0.02,2497.9,2497.2,0.0278]
[1748187540998,0.02,2497.9,2497.4,8.0]
[1748187541198,2.73,2497.9,2497.4,8.0]
[1748187541351,2.73,2497.9,2497.5,0.55]
[1748187541695,2.73,2497.9,2497.7,8.0]
[1748187541993,2.73,2497.9,2497.7,16.632]
[1748187542692,2.73,2497.9,2497.8,12.546]
[1748187543480,2.73,2497.9,2497.8,8.55]
[1748187543682,2.73,2497.9,2497.8,18.295]
[1748187544391,2.73,2497.9,2497.8,18.86021677]
[1748187544553,2.73,2497.9,2497.8,19.41180913]
[1748187545777,1.54099993,2497.9,2497.8,19.41180913]
[1748187545960,0.005,2498.0,2497.9,9.66680913]
[1748187546160,0.005,2498.0,2497.9,15.94440913]
[1748187546583,0.005,2498.0,2497.9,25.68840913]
[1748187546846,0.005,2498.5,2498.1,0.55]
[1748187547051,0.005,2498.5,2498.3,8.55]
[1748187547254,0.005,2498.5,2498.3,15.23159236]
[1748187547677,0.005,2498.5,2498.4,17.744]
[1748187548195,0.005,2498.5,2498.4,13.749]
[1748187548556,0.005,2498.6,2498.5,8.0]
[1748187548747,0.005,2498.6,2498.5,0.55]
[1748187548976,0.005,2498.6,2498.5,9.694]
[1748187549252,0.005,2498.6,2498.5,8.0]
[1748187549562,0.9499,2498.6,2498.5,13.699]
[1748187549764,0.9499,2498.6,2498.5,13.698]
[1748187550166,0.9499,2498.6,2498.5,8.0]
[1748187550367,0.9499,2498.6,2498.5,13.698]
[1748187550696,0.9787,2498.6,2498.5,8.0]
[1748187550994,0.9787,2498.6,2498.5,13.698]
[1748187551627,0.005,2498.6,2498.5,13.698]
[1748187553689,0.005,2498.6,2498.5,8.0]
[1748187553922,0.9787,2498.6,2498.5,5.698]
[1748187555134,0.9787,2498.6,2497.8,6.13]
[1748187555424,0.9787,2498.6,2498.5,5.698]
[1748187556107,0.9787,2498.6,2497.8,8.0]
[1748187556313,0.9787,2498.6,2498.5,5.698]
[1748187556496,0.9787,2498.6,2497.8,8.0]
[1748187556696,0.9787,2498.6,2497.9,5.698]
[1748187560028,0.9787,2498.6,2497.8,8.0]
[1748187560201,0.9787,2498.6,2498.1,8.0]
[1748187560405,0.9787,2498.6,2498.2,5.698]
[1748187561427,0.97303261,2498.6,2498.2,5.698]
[1748187561817,0.97303261,2498.6,2498.3,8.0]
[1748187562640,0.97303261,2498.6,2498.4,0.01017501]
[1748187562822,0.97303261,2498.6,2498.3,8.0]
[1748187563521,0.02,2498.9,2498.3,8.0]
[1748187564318,0.9625,2498.9,2498.3,8.0]
[1748187565500,0.02,2498.9,2498.4,1.81022086]
[1748187565834,0.9924,2498.8,2498.6,8.0]
[1748187566137,0.02,2498.9,2498.6,8.0]
[1748187566702,0.02,2498.9,2498.7,0.01015252]
[1748187566901,0.02,2498.9,2498.6,8.0]
[1748187567115,0.02,2498.9,2498.7,0.0101526]
[1748187567442,0.02,2498.9,2498.8,13.697]
[1748187568597,0.02,2498.9,2498.8,8.0]
[1748187568801,0.02,2498.9,2498.8,13.697]
[1748187569001,1.0124,2498.9,2498.8,13.697]
[1748187569200,1.0124,2498.9,2498.0,0.1483]
[1748187569399,0.9924,2498.8,2498.1,5.697]
[1748187569831,0.9924,2498.8,2498.2,8.0]
[1748187570735,0.9924,2498.8,2498.1,5.697]
[1748187570906,0.9924,2498.8,2498.2,5.697]
[1748187572938,0.9924,2498.8,2497.8,0.55159236]
[1748187573144,0.9924,2498.8,2498.3,5.697]
[1748187576005,0.9815,2498.6,2498.4,5.697]
[1748187578523,0.9815,2498.6,2498.5,8.0]
[1748187579032,0.9815,2498.6,2498.5,5.647]
[1748187580949,0.9815,2498.6,2497.7,8.628]
[1748187581135,0.9815,2498.4,2497.9,5.647]
[1748187581939,0.9815,2498.3,2497.9,5.647]
[1748187587457,0.9815,2498.3,2497.8,8.0]
[1748187587761,0.9815,2498.3,2497.9,5.648]
[1748187590562,0.42758773,2498.9,2498.0,8.01018974]
[1748187590563,0.9628,2498.8,2498.0,8.01018974]
[1748187590766,0.9628,2498.8,2498.0,8.0]
[1748187590967,0.9628,2498.8,2498.1,0.01017006]
[1748187591136,0.9628,2498.8,2498.1,0.56521677]
[1748187591839,0.9628,2498.8,2498.3,8.0]
[1748187592277,0.40078406,2498.9,2498.4,0.01016234]
[1748187592441,0.02,2498.9,2498.4,0.1703]
[1748187593878,0.02,2498.9,2498.5,5.648]
[1748187594267,0.02,2498.9,2498.6,8.0]
[1748187594942,0.02,2498.9,2498.7,0.56014089]
[1748187595278,0.02,2498.9,2498.7,0.55]
[1748187595840,0.02,2498.9,2498.8,0.7203]
[1748187596063,0.02,2498.9,2498.8,1.27195438]
[1748187597262,0.02,2498.9,2498.8,10.91295438]
[1748187598469,0.02,2498.9,2498.8,19.47817115]
[1748187598982,0.02,2498.9,2498.8,14.3673]
[1748187599871,0.02,2498.9,2498.8,8.7203]
[1748187600073,0.02,2498.9,2498.8,14.3673]
[1748187600242,0.02,2498.9,2498.8,8.0]
[1748187600449,0.9746,2498.9,2498.8,5.646]
[1748187601365,0.02,2498.9,2498.8,5.646]
[1748187602094,0.02,2498.9,2498.8,14.196]
[1748187602277,0.02,2498.9,2498.8,13.646]
[1748187602478,0.02,2498.9,2498.8,14.196]
[1748187602873,0.02,2498.9,2498.8,14.74765438]
[1748187603949,0.02,2498.9,2498.8,8.55165438]
[1748187604157,0.02,2498.9,2498.8,13.646]
[1748187604575,0.02,2498.9,2498.8,8.0]
[1748187604779,0.02,2498.9,2498.8,13.646]
[1748187606378,0.02,2498.9,2498.5,6.13]
[1748187606689,0.02,2498.9,2498.3,0.55165438]
[1748187606868,0.02,2498.9,2498.7,8.0]
[1748187607070,0.02,2498.9,2498.3,0.55165438]
[1748187607257,0.02,2498.9,2498.5,8.0]
[1748187607770,0.02,2498.9,2498.7,8.0]
[1748187608296,0.02,2498.9,2498.7,8.72105438]
[1748187608594,0.02,2498.9,2498.8,1.66687115]
[1748187610014,0.02,2498.9,2498.8,13.65987115]
[1748187610226,0.02,2498.9,2498.8,15.26287115]
[1748187611293,0.02,2498.9,2498.8,21.56227115]
[1748187611659,0.025,2499.9,2498.9,6.11]
[1748187611907,0.025,2499.9,2499.4,0.55]
[1748187612057,0.025,2499.9,2499.7,0.55]
[1748187612258,0.025,2499.9,2499.8,20.4254]
[1748187612463,0.025,2499.9,2499.8,20.97705438]
[1748187612767,0.9157,2500.8,2499.9,8.55]
[1748187612984,0.9157,2500.8,2499.9,15.21165438]
[1748187613302,0.37956575,2501.4,2500.1,8.55]
[1748187613587,0.02,2501.9,2500.4,0.55]
[1748187613805,0.02,2501.9,2500.8,0.55]
[1748187613973,0.02,2501.9,2500.8,0.56004916]
[1748187614155,0.02,2501.9,2500.8,8.0]
[1748187614362,0.06997301,2501.9,2500.8,13.596]
[1748187614562,0.02,2501.9,2500.8,13.596]
[1748187614767,0.02,2501.9,2500.8,8.0]
[1748187614991,0.06997357,2501.9,2500.8,13.596]
[1748187615382,0.02,2501.9,2500.8,13.596]
[1748187615572,12.64431356,2501.6,2500.8,13.596]
[1748187616092,1.0034,2500.9,2500.8,13.596]
[1748187616293,1.0034,2500.9,2500.8,13.594]
[1748187616788,1.0034,2500.9,2500.8,8.0]
[1748187616989,1.0034,2500.9,2500.8,13.594]
[1748187618693,1.0034,2500.9,2500.8,5.594]
[1748187619052,1.0034,2500.9,2500.0,8.0]
[1748187619173,1.0034,2500.9,2500.6,5.594]
[1748187619675,0.9834,2500.7,2500.4,5.594]
[1748187619880,8.65131356,2500.8,2500.4,5.594]
[1748187619881,0.9834,2500.5,2500.4,5.594]
[1748187621661,0.9889,2500.8,2500.4,5.594]
[1748187622410,0.9889,2500.8,2500.0,8.0]
[1748187622580,0.9889,2500.8,2500.2,8.0]
[1748187623121,0.9889,2500.8,2500.0,8.0]
[1748187623322,0.9889,2500.8,2500.2,8.0]
[1748187624133,0.9889,2500.8,2499.9,8.623]
[1748187624134,0.9889,2500.7,2500.3,5.594]
[1748187624416,0.9889,2500.5,2500.2,5.594]
[1748187626018,0.9535,2500.3,2500.0,5.594]
[1748187626184,0.9535,2500.5,2500.0,5.594]
[1748187627054,0.9535,2500.5,2500.1,8.0]
[1748187627941,0.9535,2500.5,2500.0,5.594]
[1748187628119,3.992,2500.8,2500.0,5.594]
[1748187628120,0.9535,2500.3,2500.0,5.594]
[1748187629114,0.9535,2500.3,2499.9,8.623]
[1748187629350,0.9535,2500.3,2500.0,5.594]
[1748187630339,0.9535,2500.3,2499.9,8.623]
[1748187630530,0.9535,2500.3,2500.1,5.594]
[1748187630956,1.44805,2500.3,2500.1,5.594]
[1748187631354,1.44805,2500.3,2499.9,8.623]
[1748187631655,1.44805,2500.3,2500.0,5.594]
[1748187632060,1.44805,2500.3,2499.9,8.623]
[1748187632223,1.027602,2500.2,2500.1,5.594]
[1748187632419,0.9776,2500.2,2499.9,8.623]
[1748187632620,0.9776,2500.0,2499.9,8.623]
[1748187632955,3.992,2500.0,2499.6,5.594]
[1748187633134,1.3768,2499.9,2499.6,5.594]
[1748187633562,0.9776,2499.8,2499.6,5.594]
[1748187633760,0.9776,2499.8,2498.7,0.1944]
[1748187634055,0.9776,2499.6,2499.3,5.595]
[1748187634258,0.9776,2499.6,2498.8,0.33407339]
[1748187634425,0.9776,2499.4,2498.8,0.33407339]
[1748187634627,0.9776,2499.4,2498.9,5.595]
[1748187635439,0.9316,2500.2,2499.0,0.2050451]
[1748187635637,0.9316,2500.2,2499.1,0.55]
[1748187635832,0.9316,2500.2,2499.2,1.11687115]
[1748187636035,1.42396,2500.2,2499.3,0.7449]
[1748187636384,0.9316,2500.2,2499.3,0.7449]
[1748187637230,0.9316,2500.2,2499.3,1.29655438]
[1748187637426,0.04999604,2500.1,2499.4,5.595]
[1748187637662,0.9316,2500.0,2499.5,8.0]
[1748187637869,0.9316,2500.0,2498.7,0.1949]
[1748187638142,0.9316,2499.8,2499.5,5.595]
[1748187639259,0.9316,2499.6,2498.8,0.33407339]
[1748187639462,0.9316,2499.6,2499.0,8.0]
[1748187639825,0.9316,2499.6,2498.9,5.549]
[1748187640026,0.9316,2499.6,2499.0,8.0]
[1748187641766,1.42396,2499.6,2499.0,8.0]
[1748187643346,0.9316,2499.6,2499.0,8.0]
[1748187644174,3.993,2500.3,2499.0,8.74655438]
[1748187644342,0.9714,2500.2,2499.0,8.74655438]
[1748187645438,0.9714,2500.2,2499.0,8.1949]
[1748187645640,0.49644,2500.1,2499.0,8.1949]
[1748187646146,0.9714,2500.2,2499.1,0.01012968]
[1748187646537,0.9714,2500.2,2499.1,1.66687115]
[1748187646750,0.9714,2500.2,2499.2,0.74655438]
[1748187647656,0.9714,2500.2,2499.2,0.1949]
[1748187647987,0.9714,2500.2,2499.3,0.01011389]
[1748187648280,0.9714,2500.2,2499.2,0.1949]
[1748187650180,0.9714,2500.2,2499.3,0.55]
[1748187653283,0.9714,2500.5,2499.5,0.55]
[1748187653582,0.9714,2500.8,2499.7,0.55]
[1748187653744,0.9714,2500.8,2499.9,8.55]
[1748187654281,0.9714,2500.8,2500.0,0.1949]
[1748187655047,0.9714,2500.8,2499.6,3.992]
[1748187655048,0.9714,2500.8,2500.1,5.549]
[1748187655247,0.9714,2500.8,2500.2,8.0]
[1748187656278,0.9714,2500.8,2500.3,0.0100913]
[1748187656685,0.9714,2500.8,2500.2,8.0]
[1748187657406,0.02,2500.9,2500.2,8.0]
[1748187658053,0.02,2500.9,2500.3,0.55]
[1748187659788,0.02,2500.9,2500.5,8.0]
[1748187660791,0.02,2500.9,2500.6,0.01007273]
[1748187661022,0.02,2500.9,2500.7,8.0]
[1748187661151,0.02,2500.9,2500.8,0.56005162]
[1748187661522,0.02,2500.9,2500.8,1.306606]
[1748187661653,0.02,2500.9,2500.8,15.416606]
[1748187661849,0.02,2501.9,2501.0,0.7449]
[1748187662055,0.02,2501.9,2501.3,0.55]
[1748187662306,0.02,2501.9,2501.6,0.1949]
[1748187662469,0.02,2501.9,2501.8,8.55]
[1748187662669,2.05570395,2502.9,2501.9,0.1949]
[1748187662851,2.05570395,2502.9,2502.0,0.55]
[1748187663056,2.05570395,2502.9,2502.2,8.7449]
[1748187663255,2.05570395,2502.9,2502.6,0.55]
[1748187663511,2.05570395,2502.9,2502.6,1.11521677]
[1748187664389,2.05570395,2502.9,2502.8,8.55]
[1748187664806,2.05570395,2502.9,2502.6,0.55]
[1748187665003,2.05570395,2502.9,2502.5,0.1949]
[1748187665310,2.05570395,2502.9,2502.8,8.0]
[1748187666307,2.05570395,2502.9,2502.8,5.547]
[1748187666617,0.2555704,2502.9,2502.8,13.547]
[1748187666903,0.05,2502.9,2502.8,13.547]
[1748187668405,0.05,2502.9,2502.8,13.545]
[1748187669279,0.05,2502.9,2502.8,14.095]
[1748187669686,0.05,2502.9,2502.8,13.545]
[1748187670569,0.05,2502.9,2502.8,13.5]
[1748187671406,0.05,2502.9,2502.8,14.2421]
[1748187674490,0.05,2502.9,2502.8,15.35897115]
[1748187675288,0.05,2502.9,2502.8,19.34597115]
[1748187676207,0.05,2502.9,2502.8,9.30897115]
[1748187676373,0.05,2502.9,2502.8,14.24175438]
[1748187676572,0.05,2502.9,2502.8,11.8001]
[1748187676994,0.05,2502.9,2502.8,20.35175438]
[1748187678419,0.05,2502.9,2502.8,21.46697115]
[1748187678792,0.05,2502.9,2502.8,25.45397115]
[1748187678981,0.05,2502.9,2502.8,25.78751062]
[1748187680703,0.05,2502.9,2502.8,2.19251062]
[1748187680907,1.00454365,2503.2,2502.8,5.83153947]
[1748187681703,1.00454365,2503.2,2502.8,5.498]
[1748187683238,1.00454365,2503.2,2502.9,5.497]
[1748187683393,1.00454365,2503.2,2503.0,5.497]
[1748187683598,1.00454365,2503.2,2503.1,5.497]
[1748187683824,0.95454365,2503.2,2503.1,5.497]
[1748187685413,0.95454365,2503.2,2503.1,5.498]
[1748187686436,0.90454365,2503.2,2503.1,5.498]
[1748187686771,0.90454365,2503.2,2503.0,5.498]
[1748187687835,0.90454365,2503.2,2502.1,0.56521677]
[1748187688046,0.90454365,2503.2,2502.7,5.498]
[1748187689677,0.90454365,2503.2,2502.8,8.0]
[1748187690174,0.85454365,2503.2,2502.8,14.11]
[1748187690870,0.38035565,2503.7,2502.8,14.11]
[1748187691046,0.05,2503.9,2502.8,14.11]
[1748187692178,0.05,2503.9,2503.0,0.3451]
[1748187692471,0.05,2503.9,2503.3,0.55]
[1748187692677,0.05,2503.9,2503.5,8.0]
[1748187692976,0.05,2503.9,2503.7,8.0]
[1748187693183,1.0592,2503.9,2503.7,8.0]
[1748187693772,0.05,2503.9,2503.7,8.0]
[1748187695150,0.05,2503.9,2503.4,8.613]
[1748187695151,0.05,2503.9,2503.8,5.497]
[1748187695674,0.05,2503.9,2503.7,5.497]
[1748187695675,1.0105,2503.8,2503.7,5.497]
[1748187697389,1.0105,2503.8,2503.4,8.613]
[1748187697566,1.0105,2503.8,2503.5,5.497]
[1748187699898,1.0105,2503.8,2503.4,8.613]
[1748187700098,1.0604324,2503.8,2503.4,8.613]
[1748187700402,1.0105,2503.8,2503.4,8.613]
[1748187700686,1.0105,2503.8,2502.3,0.3495]
[1748187700895,1.0105,2503.8,2502.2,0.39533929]
[1748187700896,0.969638,2503.7,2502.4,5.459]
[1748187701087,0.9197,2503.5,2502.5,8.0]
[1748187701282,0.9197,2503.5,2502.6,5.459]
[1748187701901,0.9197,2503.5,2502.7,8.00999446]
[1748187702100,0.9197,2503.5,2502.7,8.0]
[1748187702902,0.9197,2503.3,2502.7,8.0]
[1748187703206,0.9197,2503.3,2502.8,5.459]
[1748187705295,0.9197,2503.3,2502.9,8.0]
[1748187705603,0.9197,2503.3,2502.8,5.459]
[1748187705604,0.9197,2503.3,2503.0,5.46]
[1748187705804,0.9197,2503.3,2503.1,5.46]
[1748187707128,0.9197,2503.3,2503.0,5.46]
[1748187707418,0.9197,2503.7,2503.0,5.46]
[1748187707708,0.9197,2503.5,2503.0,5.46]
[1748187709204,0.9197,2503.4,2503.0,5.46]
[1748187709419,0.9197,2503.2,2503.0,5.46]
[1748187710614,0.9197,2503.2,2502.5,8.0]
[1748187710615,0.9696395,2503.2,2502.3,1.996328]
[1748187710779,0.9197,2503.1,2502.3,1.996328]
[1748187711098,0.9197,2502.9,2502.4,5.46]
[1748187711413,0.9197,2502.7,2502.4,5.46]
[1748187712673,0.9197,2503.1,2502.4,5.46]
[1748187714280,0.96964514,2503.0,2502.3,1.996328]
[1748187714480,0.96964514,2503.0,2502.4,5.46]
[1748187714680,0.9197,2503.0,2502.4,5.46]
[1748187714886,4.9067,2502.9,2502.4,5.46]
[1748187715119,0.9197,2502.7,2502.4,5.46]
[1748187715987,4.9067,2502.7,2502.4,5.46]
[1748187716716,0.9532,2502.6,2502.3,5.46]
[1748187716961,0.9532,2502.6,2501.4,1.996328]
[1748187717244,0.9532,2502.4,2501.5,5.46]
[1748187717758,0.04995936,2502.3,2501.4,7.457328]
[1748187718044,0.9532,2502.2,2501.4,7.457328]
[1748187718243,0.9532,2502.0,2501.4,7.457328]
[1748187719606,0.9532,2502.0,2501.5,8.0]
[1748187719843,0.9532,2502.0,2501.6,0.01003969]
[1748187720045,0.9532,2502.0,2501.4,1.996328]
[1748187720214,0.9532,2502.0,2501.7,5.461]
[1748187721215,0.9532,2502.0,2501.1,2.046328]
[1748187721407,1.0101,2501.8,2501.1,2.046328]
[1748187721608,1.0101,2501.6,2501.1,2.046328]
[1748187721802,1.0101,2501.6,2501.2,5.461]
[1748187722749,1.0101,2501.6,2501.1,2.046328]
[1748187722957,1.0101,2501.6,2501.2,5.461]
[1748187723766,1.0101,2501.6,2501.3,8.01006051]
[1748187724053,1.0101,2502.0,2501.3,0.56343772]
[1748187724224,4.9991,2502.0,2501.5,8.0]
[1748187724558,5.49901,2502.0,2501.6,5.462]
[1748187724713,4.9991,2502.0,2501.6,5.462]
[1748187725063,1.0101,2502.7,2501.6,5.462]
[1748187725347,1.0101,2502.6,2501.6,5.462]
[1748187725560,4.9991,2502.6,2501.6,5.462]
[1748187726066,9.05457934,2502.2,2501.1,2.046328]
[1748187726357,9.05457934,2501.8,2501.1,2.046328]
[1748187726506,0.9663,2501.6,2501.1,2.046328]
[1748187726710,0.9663,2501.4,2501.1,2.046328]
[1748187727318,0.9663,2501.4,2501.1,0.05]
[1748187727747,0.9663,2501.2,2501.1,0.05]
[1748187729447,0.9663,2501.6,2501.1,0.05]
[1748187730908,4.9553,2501.6,2501.1,0.05]
[1748187732357,0.49553,2501.5,2501.2,5.43]
[1748187732853,0.9663,2501.6,2501.2,5.43]
[1748187733433,3.99,2502.0,2501.3,8.0]
[1748187733745,3.99,2502.0,2501.1,0.3983]
[1748187734051,0.9858,2502.1,2501.3,8.0]
[1748187734229,0.9858,2502.4,2501.4,0.35832918]
[1748187734555,1.48338,2502.4,2501.6,8.0]
[1748187734754,0.9858,2502.4,2501.4,0.3483]
[1748187734962,0.9858,2502.4,2501.7,5.43]
[1748187735117,0.9858,2502.4,2501.4,0.3483]
[1748187735322,0.9431,2502.4,2501.6,8.0]
[1748187735567,3.99,2502.5,2501.6,8.0]
[1748187735568,0.9431,2502.2,2501.6,5.43]
[1748187735773,0.99306819,2502.1,2501.1,0.05]
[1748187735919,0.9431,2502.1,2501.2,5.43]
[1748187736123,3.989,2502.0,2501.2,5.43]
[1748187736452,0.9431,2501.9,2501.2,5.43]
[1748187736859,0.9431,2501.9,2501.3,8.35835512]
[1748187737015,0.9431,2501.9,2501.3,8.3483]
[1748187737633,0.9431,2501.9,2501.4,5.43]
[1748187738458,0.9431,2501.9,2501.5,0.01004155]
[1748187738762,0.9431,2501.9,2501.4,5.43]
[1748187739542,0.9431,2501.9,2501.5,8.0]
[1748187740782,0.9431,2501.9,2501.6,5.43]
[1748187741297,0.9834,2502.6,2501.6,5.43]
[1748187741504,3.989,2502.2,2501.6,5.43]
[1748187741792,0.9834,2502.1,2501.6,5.43]
[1748187744684,0.9834,2502.3,2501.8,0.3483]
[1748187745390,0.9834,2502.3,2501.9,5.43]
[1748187745888,0.9834,2502.3,2502.0,5.43]